[Event "1000GM NY Winter IM-C 2024"]
[Site "New York"]
[Date "2024.01.14"]
[Round "6.1"]
[White "Pressman, Leif"]
[Black "Goktepe, Derin"]
[Result "1/2-1/2"]
[ECO "C77"]
[WhiteElo "2258"]
[BlackElo "2187"]
[Annotator "RC"]
[PlyCount "121"]
[EventDate "2024.01.10"]
[EventType "swiss"]
[EventCountry "USA"]
[SourceTitle "playchess.com"]
[Source "ChessBase"]
[SourceQuality "1"]
[TimeControl "5400+30"]

1. e4 {[%emt 0:00:54]} e5 {[%emt 0:02:09]} 2. Nf3 {[%emt 0:00:11]} Nc6 {[%emt 0:00:22]} 3. Bb5 {[%emt 0:00:43]} a6 {[%emt 0:00:29]} 4. Ba4 {[%emt 0:00:05]} Nf6 {[%emt 0:00:31]} 5. O-O {[%emt 0:00:36]} b5 {[%emt 0:00:32]} 6. Bb3 {[%emt 0:00:04]} Bc5 {[%emt 0:00:49]} 7. Nc3 {[%emt 0:01:34]} d6 {[%emt 0:04:00]} 8. Nd5 {[%emt 0:00:55]} Rb8 {[%emt 0:06:59]} 9. c3 {[%emt 0:03:56]} h6 {[%emt 0:08:25]} 10. d4 {[%emt 0:04:39]} exd4 {[%emt 0:10:23]} 11. cxd4 {[%emt 0:02:40]} Ba7 {[%emt 0:03:58]} 12. Qc2 {[%emt 0:16:54]} Bb7 {[%emt 0:04:51]} 13. Be3 {[%emt 0:09:29]} Nxd5 {[%emt 0:02:42]} 14. Bxd5 {[%emt 0:04:56]} Nb4 {[%emt 0:01:36]} 15. Bxf7+ {[%emt 0:01:33]} Kxf7 {[%emt 0:00:36]} 16. Qb3+ {[%emt 0:00:05]} Kg6 {[%emt 0:09:34]} 17. Qxb4 {[%emt 0:02:02]} Bxe4 {[%emt 0:01:02]} 18. d5 {[%emt 0:03:05]} Bxf3 {[%emt 0:01:02]} 19. gxf3 {[%emt 0:01:04]} Bxe3 {[%emt 0:04:05]} 20. Qe4+ {[%emt 0:02:26]} Kf7 {[%emt 0:01:17]} 21. Qf5+ {[%emt 0:03:35]} Qf6 {[%emt 0:01:48]} 22. Qxf6+ {[%emt 0:03:35]} Kxf6 {[%emt 0:00:55]} 23. fxe3 {[%emt 0:00:04]} Ke5 {[%emt 0:01:25]} 24. Rac1 {[%emt 0:02:55]} Rhc8 {[%emt 0:06:31]} 25. e4 {[%emt 0:03:42]} c5 {[%emt 0:02:54]} 26. dxc6 {[%emt 0:05:23]} Rb6 {[%emt 0:01:01]} 27. c7 {[%emt 0:00:23]} Rb7 {[%emt 0:00:20]} 28. Rc6 {[%emt 0:02:44]} Rbxc7 {[%emt 0:02:32]} 29. Rxa6 {[%emt 0:01:03]} Rc2 {[%emt 0:00:33]} 30. Rf2 {[%emt 0:08:45]} Kf4 {[%emt 0:02:33]} 31. Rxd6 {[%emt 0:01:57]} Rxf2 {[%emt 0:00:24]} 32. Kxf2 {[%emt 0:00:02]} Rc2+ {[%emt 0:00:21]} 33. Ke1 {[%emt 0:02:13]} Kxf3 {[%emt 0:01:13]} 34. Rg6 {[%emt 0:08:49]} Rxb2 {[%emt 0:01:31]} 35. Rxg7 {[%emt 0:00:33]} Rxa2 {[%emt 0:03:51]} 36. Rb7 {[%emt 0:00:51]} Rb2 {[%emt 0:00:40]} 37. h4 {[%emt 0:01:11]} Rb4 {[%emt 0:00:55]} 38. Kd2 {[%emt 0:01:18]} Rd4+ {[%emt 0:03:38]} 39. Kc3 {[%emt 0:00:02]} Rxe4 {[%emt 0:01:28]} 40. Rxb5 {[%emt 0:00:01]} Rxh4 {[%emt 0:00:28]} 41. Kd3 {[%emt 0:00:23]} Rf4 {[%emt 0:00:30]} 42. Kd2 {[%emt 0:02:13]} Re4 {[%emt 0:00:39]} 43. Rh5 {[%emt 0:01:17]} Re6 {[%emt 0:00:12]} 44. Rh1 {[%emt 0:00:21]} Kg3 {[%emt 0:01:32]} 45. Kd1 {[%emt 0:00:29]} Kg4 {[%emt 0:00:30]} 46. Re1 {[%emt 0:00:40]} Rf6 {[%emt 0:00:36]} 47. Rg1+ {[%emt 0:00:26]} Kh3 {[%emt 0:00:27]} 48. Ke2 {[%emt 0:00:14]} h5 {[%emt 0:01:01]} 49. Rh1+ {[%emt 0:00:18]} Kg4 {[%emt 0:00:08]} 50. Rf1 {[%emt 0:00:12]} Ra6 {[%emt 0:00:41]} 51. Kf2 {[%emt 0:00:43]} Ra2+ {[%emt 0:00:16]} 52. Kg1 {[%emt 0:00:12]} h4 {[%emt 0:00:11]} 53. Rb1 {[%emt 0:00:09]} Ra3 {[%emt 0:00:22]} 54. Rc1 {[%emt 0:00:36]} Kg3 {[%emt 0:00:29]} 55. Rb1 {[%emt 0:00:12]} Kh3 {[%emt 0:00:53]} 56. Rc1 {[%emt 0:00:25]} Rg3+ {[%emt 0:00:17]} 57. Kh1 {[%emt 0:00:12]} Rf3 {[%emt 0:00:05]} 58. Ra1 {[%emt 0:00:14]} Kg3 {[%emt 0:00:08]} 59. Rg1+ {[%emt 0:00:02]} Kf2 {[%emt 0:00:16]} 60. Rg2+ {[%emt 0:00:22]} Kf1 {[%emt 0:00:15]} 61. Rg1+ {[%emt 0:00:15]} 1/2-1/2

[Event "1000GM NY Winter IM-C 2024"]
[Site "New York"]
[Date "2024.01.14"]
[Round "6.2"]
[White "Martin Del Campo Cardenas, Roberto Abel"]
[Black "Yoo, Eugene"]
[Result "1/2-1/2"]
[ECO "B30"]
[WhiteElo "2205"]
[BlackElo "2168"]
[Annotator "TA"]
[PlyCount "86"]
[EventDate "2024.01.10"]
[EventType "swiss"]
[EventCountry "USA"]
[SourceTitle "playchess.com"]
[Source "ChessBase"]
[SourceQuality "1"]
[TimeControl "5400+30"]

{[%evp 35,86,0,0,-8,0,-77,-28,-23,18,-12,2,-77,-66,-129,-46,-97,-19,-114,-112,-103,-111,-113,-92,-465,-301,-270,-185,-190,-185,-183,-177,-179,172,-87,537,125,145,-233,-234,-236,-245,-241,-88,-302,0,0,0,0,0,0,0,0,0]} 1. e4 {[%emt 0:04:00]} c5 {[%emt 0:00:23]} 2. Nf3 {[%emt 0:00:31]} Nc6 {[%emt 0:00:07]} 3. Nc3 {[%emt 0:01:15]} e5 {[%emt 0:00:15]} 4. Bc4 {[%emt 0:01:19]} Be7 {[%emt 0:00:31]} 5. d3 {[%emt 0:00:47]} Nf6 {[%emt 0:00:35]} 6. Bg5 {[%emt 0:03:36] B30: Sicilian: 2...Nc6 3 Bb5, lines without ...g6.} d6 {[%emt 0:00:44]} 7. Bxf6 {[%emt 0:02:23]} Bxf6 {[%emt 0:00:02]} 8. Nd5 {[%emt 0:01:36]} g6 $146 {[%emt 0:00:50]} ({Predecessor:} 8... O-O 9. c3 Bg5 10. Nxg5 Qxg5 11. Qd2 Qxg2 12. O-O-O Qh3 13. Rdg1 Qh4 14. Rg5 Kh8 {0-1 Guseinov,G (2668)-Suleymenov,A (2467) Olympiad-44 Chennai 2022 (8.2)}) 9. a3 {[%emt 0:05:20]} Rb8 {[%emt 1:31:33]} 10. b4 {[%emt 0:03:02]} b5 {[%emt 0:00:00]} 11. Bb3 {[%emt 0:01:10]} O-O {[%emt 0:00:00]} 12. h3 {[%emt 0:03:02]} Bg7 {[%emt 0:00:00]} 13. c3 {[%emt 0:03:11]} Bh6 {[%emt 0:00:00]} 14. O-O {[%emt 0:17:04]} Kh8 {[%emt 0:00:00]} 15. Qe2 {[%emt 0:05:38]} Be6 {[%emt 0:00:00]} 16. bxc5 {[%emt 0:10:16]} dxc5 {[%emt 0:00:00]} 17. Rfb1 {[%emt 0:05:30]} Qa5 {[%emt 0:00:00]} 18. Nh2 {[%emt 0:04:57]} Rb7 {[%emt 0:00:00]} 19. Ng4 {[%emt 0:01:30]} Bg5 {[%emt 0:00:00]} 20. Kh2 {[%emt 0:06:28]} (20. Nh2 $11) 20... h5 {[%emt 0:00:00]} (20... Qd8 $17 {...f5 is the strong threat.} 21. Nge3 Rb8) 21. Nge3 $1 $11 {[%emt 0:00:54]} h4 {[%emt 0:00:00]} 22. Ng4 {[%emt 0:03:43]} Rfb8 {[%emt 0:00:00]} 23. g3 {[%emt 0:00:47]} (23. Kh1 $11) 23... Qd8 $17 {[%emt 0:00:00]} 24. Ba2 {[%emt 0:05:39]} (24. gxh4 $15 Bxh4 25. Rg1) 24... a6 {[%emt 0:00:00]} (24... f5 $17 25. Nxe5 Nxe5 26. exf5 Bxd5 (26... hxg3+ 27. fxg3 Bxd5 28. Qxe5+ Bf6 29. Qxd5 $17) 27. Qxe5+ Bf6 28. Qxd5 Bxc3 29. fxg6 hxg3+ 30. Kxg3 Kg7 (30... Bxa1 31. Rxa1 Qxd5 32. Bxd5 $17)) 25. Kg1 {[%emt 0:00:35]} (25. Kg2 $15) 25... Qd6 {[%emt 0:00:00]} ({Black should try} 25... f5 $17 26. Nh2 fxe4 27. Qxe4 hxg3 28. fxg3 Bf5) 26. gxh4 {[%emt 0:00:29]} (26. Rf1 $1 $11) 26... Bxh4 $17 {[%emt 0:00:00]} 27. Qe3 {[%emt 0:00:12]} f5 {[%emt 0:00:00]} 28. exf5 {[%emt 0:05:59]} gxf5 {[%emt 0:02:13]} (28... Bxd5 $6 29. Bxd5 (29. fxg6 Bxa2 30. Qh6+ Kg8 $17) 29... Qxd5 30. fxg6 $11) 29. Ngf6 $2 {[%emt 0:01:53][%mdl 8192]} (29. Ndf6 $17 f4 (29... fxg4 30. Qh6+) 30. Ne4 fxe3 31. Nxd6 exf2+ 32. Kf1) 29... f4 {[%emt 0:02:14]} (29... Rg7+ 30. Kh1 Rh7 (30... f4 $2 31. Qf3 $19) 31. Nxh7 (31. Rg1 $2 f4 $19) 31... Bxd5+ 32. Bxd5 Qxd5+ (32... Kxh7 $2 33. Qf3 $18) 33. Kh2 Kxh7 34. Rg1 $19) 30. Qf3 {[%emt 0:00:30]} Bxf6 {[%emt 0:00:25]} 31. Nxf6 {[%emt 0:00:05]} Bxa2 $1 {[%emt 0:00:14]} 32. Qh5+ {[%emt 0:00:13]} Kg7 {[%emt 0:00:01]} 33. Ne4 {[%emt 0:00:22]} Qd5 $4 {[%emt 0:03:10][%mdl 8192] [#]} (33... Qxd3 $19 34. Re1 Be6) 34. Rb2 $2 {[%emt 0:00:23]} (34. Kh2 $1 $18 Bxb1 35. Rxb1) 34... Bb3 $2 {[%emt 0:01:14][%mdl 8192]} (34... Qxd3 $2 35. f3 Rg8 36. Rg2+ Kf8 37. Raxa2 (37. Qf5+ Rf7 $18) 37... Qe3+ 38. Kh2 $18) (34... Qf7 $17 35. Qg5+ (35. Qg4+ Kh8 $11) 35... Kh8 (35... Qg6 36. Qxg6+ Kxg6 37. Raxa2 $15)) 35. f3 $2 {[%emt 0:00:14]} (35. Kh2 $18 {and the rest is easy.} Rg8 (35... Qxd3 $2 36. Rg1+ $18) 36. Rg1+ Kf8 37. Nf6 Rxg1 38. Qe8+ (38. Nxd5 Rbg7 $18) 38... Kg7 39. Nxd5 Bxd5 40. Kxg1) 35... Rg8 $16 {[%emt 0:00:43] [#]} 36. Rg2+ $2 {[%emt 0:00:56][%mdl 8192]} (36. Kh2 $1 $16 Kf8 37. Nf6) 36... Kf8 $19 {[%emt 0:00:43]} 37. Qh6+ {[%emt 0:00:14]} Rbg7 {[%emt 0:01:57]} 38. Kh2 {[%emt 0:00:59]} Ne7 $2 {[%emt 0:00:59]} (38... Qxd3 $2 {too greedy.} 39. Rag1 $18 (39. Nxc5 Qc4 $17) (39. Nxc5 Qc4 $19)) (38... Qe6 $1 $19 {[%cal Re6h6]} 39. Nf6 Kf7 40. Nxg8 Rxg2+ (40... Rxg8 41. Qh5+ Ke7 42. Rxg8 $15) 41. Kxg2 Kxg8 42. Qg5+ Kf7) 39. Rag1 $2 {[%emt 0:00:25]} (39. Rxg7 $17 {might work better.} Rxg7 40. Rg1) 39... Nf5 $2 {[%emt 0:00:32]} (39... Qe6 $19 40. Nf6 Nf5 41. Nh7+ Ke8 42. Qxe6+ Bxe6 43. Nf6+ Kf8 44. Nxg8 Rxg8 45. Rxg8+ Bxg8) 40. Qf6+ $11 {[%emt 0:00:11]} Qf7 {[%emt 0:00:24]} 41. Qd8+ {[%emt 0:00:16]} Qe8 {[%emt 0:00:02]} 42. Qf6+ {[%emt 0:00:07]} Qf7 {[%emt 0:00:18]} 43. Qd8+ {[%emt 0:00:02]} Qe8 {[%emt 0:00:02]} 1/2-1/2

[Event "1000GM NY Winter IM-C 2024"]
[Site "New York"]
[Date "2024.01.14"]
[Round "6.3"]
[White "Chabris, Christopher"]
[Black "Rohde, Michael"]
[Result "0-1"]
[ECO "B41"]
[WhiteElo "2078"]
[BlackElo "2333"]
[Annotator "RC"]
[PlyCount "64"]
[EventDate "2024.01.10"]
[EventType "swiss"]
[EventCountry "USA"]
[SourceTitle "playchess.com"]
[Source "ChessBase"]
[SourceQuality "1"]
[TimeControl "5400+30"]

1. e4 {[%emt 0:00:03]} c5 {[%emt 0:17:20]} 2. Nf3 {[%emt 0:00:07]} e6 {[%emt 0:00:05]} 3. d4 {[%emt 0:00:10]} cxd4 {[%emt 0:00:04]} 4. Nxd4 {[%emt 0:00:06]} a6 {[%emt 0:00:25]} 5. c4 {[%emt 0:00:17]} Nf6 {[%emt 0:00:13]} 6. Nc3 {[%emt 0:00:11]} Qc7 {[%emt 0:00:05]} 7. a3 {[%emt 0:01:53]} Be7 {[%emt 0:00:25]} 8. Be2 {[%emt 0:00:59]} d6 {[%emt 0:00:13]} 9. Be3 {[%emt 0:00:32]} b6 {[%emt 0:00:52]} 10. O-O {[%emt 0:00:45]} Bb7 {[%emt 0:00:06]} 11. f3 {[%emt 0:00:31]} O-O {[%emt 0:00:22]} 12. Qd2 {[%emt 0:01:29]} Nbd7 {[%emt 0:00:21]} 13. b4 {[%emt 0:02:49]} Rac8 {[%emt 0:00:23]} 14. Rfc1 {[%emt 0:06:03]} Rfe8 {[%emt 0:00:36]} 15. Bf1 {[%emt 0:02:59]} Qb8 {[%emt 0:00:27]} 16. Rab1 {[%emt 0:03:40]} Bd8 {[%emt 0:02:06]} 17. Na4 {[%emt 0:05:56]} Bc7 {[%emt 0:03:03]} 18. g3 {[%emt 0:16:32]} Ne5 {[%emt 0:07:40]} 19. Qf2 {[%emt 0:03:54]} d5 {[%emt 0:01:35]} 20. c5 {[%emt 0:18:20]} b5 {[%emt 0:01:46]} 21. Nb2 {[%emt 0:09:16]} dxe4 {[%emt 0:01:08]} 22. c6 {[%emt 0:01:15]} Ba8 {[%emt 0:02:57]} 23. fxe4 {[%emt 0:03:09]} Neg4 {[%emt 0:01:10]} 24. Qf3 {[%emt 0:01:13]} Nxe3 {[%emt 0:00:11]} 25. Qxe3 {[%emt 0:00:08]} Bb6 {[%emt 0:00:37]} 26. Rc5 {[%emt 0:02:32]} Bxc5 {[%emt 0:01:06]} 27. bxc5 {[%emt 0:00:07]} Bxc6 {[%emt 0:05:08]} 28. Nc4 {[%emt 0:02:21]} Bxe4 {[%emt 0:01:12]} 29. Rb2 {[%emt 0:04:30]} Rxc5 {[%emt 0:02:03]} 30. Nxe6 {[%emt 0:03:20]} Rxc4 {[%emt 0:00:34]} 31. Nxg7 {[%emt 0:00:28]} Kxg7 {[%emt 0:00:31]} 32. Bxc4 {[%emt 0:00:35]} Qe5 {[%emt 0:01:09]} 0-1

[Event "1000GM NY Winter IM-C 2024"]
[Site "New York"]
[Date "2024.01.14"]
[Round "6.4"]
[White "Ho, Carter"]
[Black "Almeida Saenz, Alfonso"]
[Result "1-0"]
[ECO "B61"]
[WhiteElo "2180"]
[BlackElo "2222"]
[Annotator "TA"]
[PlyCount "47"]
[EventDate "2024.01.10"]
[EventType "swiss"]
[EventCountry "USA"]
[SourceTitle "playchess.com"]
[Source "ChessBase"]
[SourceQuality "1"]
[TimeControl "5400+30"]

{[%evp 22,47,57,57,57,63,50,25,23,31,29,-33,-20,-34,54,63,96,10,9,2,41,41,544,-2,542,529,29997,-433]} 1. e4 {[%emt 0:00:38]} c5 {[%emt 0:03:39]} 2. Nf3 {[%emt 0:00:06]} Nc6 {[%emt 0:00:08]} 3. d4 {[%emt 0:00:04]} cxd4 {[%emt 0:00:05]} 4. Nxd4 {[%emt 0:00:03]} Nf6 {[%emt 0:00:07]} 5. Nc3 {[%emt 0:00:03]} d6 {[%emt 0:00:05]} 6. Bg5 {[%emt 0:00:05]} Bd7 {[%emt 0:00:06]} 7. Qd2 {[%emt 0:00:08]} Nxd4 {[%emt 0:00:29]} 8. Qxd4 {[%emt 0:00:10]} Qa5 {[%emt 0:00:02]} 9. f4 {[%emt 0:18:17]} h6 {[%emt 0:00:46]} 10. Bxf6 {[%emt 0:01:55]} gxf6 {[%emt 0:00:04]} 11. O-O-O {[%emt 0:01:01]} Rc8 {[%emt 0:00:23]} 12. Kb1 {[%emt 0:00:54]} Bg7 {[%emt 0:03:31]} 13. Be2 {[%emt 0:07:12]} Qc5 {[%emt 0:00:23] OK} 14. Qd3 {[%emt 0:00:42]} f5 {[%emt 0:00:24] [#] OK. White has an edge.} 15. e5 $1 {[%emt 0:00:16] Brilliant} O-O {[%emt 0:03:21] [#] OK} 16. g4 {[%emt 0:23:10] Mistake (0.6)} fxg4 {[%emt 0:01:59]} 17. Rhg1 {[%emt 0:02:34] OK} h5 {[%emt 0:01:56] Mistake (0.9)} (17... Kh8 $15) 18. Ne4 $14 {[%emt 0:04:19] OK} Qc6 {[%emt 0:01:11][%cal Rd6e5] Inaccurate} 19. h3 {[%emt 0:03:43] White is more active. Mistake (0.9)} (19. exd6 exd6 20. h4 Rfd8 $17 (20... gxh3 21. Nf6+ Kh8 22. Qh7#)) ({White should play} 19. Ng5 $16 {[%csl Gg5][%cal Rd3h7]} f5 20. h3 (20. exd6 Qb6 $11) (20. exf6 Rxf6 21. h3 Bf5 $17) 20... dxe5 21. hxg4 exf4 (21... hxg4 22. Qxd7 exf4 23. Qxc6 $16) 22. Qb3+ (22. Qxd7 $2 {gets mated.} Qxc2+ 23. Ka1 Bxb2#) (22. gxh5 Kh8 $11) 22... Kh8 23. Rh1) 19... dxe5 $11 {[%emt 0:07:28] Best (Easy)} (19... gxh3 $2 {is the wrong capture.} 20. Nf6+ (20. exd6 h2 $18) (20. Ng5 f5 $18) 20... exf6 21. exf6 $18) 20. hxg4 $40 {[%emt 0:04:15][%mdl 128] Black needs to defend precisely. OK} exf4 {[%emt 0:05:07][%cal Oc6b6] Threatens to win with ...Qb6! Inaccurate} 21. Ng5 {[%emt 0:02:46][%csl Gg5][%cal Rd3h7] Best (Easy)} Rfd8 $2 {[%emt 0:00:26][%mdl 8192] Loses game (5.0)} ({Black should try} 21... Qh6 $1 $14 22. gxh5 Ba4) 22. Qh7+ $18 {[%emt 0:00:19] Best (Easy)} ({Less strong is} 22. gxh5 Qh6 $14) 22... Kf8 {[%emt 0:00:02] Loses game (5.4)} 23. gxh5 {[%emt 0:00:09][%cal Oh7h8] Qh8+! would kill now. Best (Easy)} Qf6 {[%emt 0:00:17][%csl Gg7][%cal Rf6b2] [#] Inaccurate} 24. Qh8+ $3 {[%emt 0:00:14][%mdl 33280] Weighted Error Value: White=0.23 (precise) /Black=0.87. Brilliant.  Loses game:     	---       	Black=2      Mistake:       	White=2     	Black=1      Inaccurate:     	---       	Black=3      OK:         	White=3     	Black=3      Best:        	White=3     	Black=1      Brilliant:      	White=2     	---       . Loss on time!?} 1-0

[Event "1000GM NY Winter IM-C 2024"]
[Site "New York"]
[Date "2024.01.14"]
[Round "6.5"]
[White "Tanenbaum, Zachary"]
[Black "Kovalchuk, Igor"]
[Result "0-1"]
[ECO "B06"]
[WhiteElo "2272"]
[BlackElo "2030"]
[Annotator "RC"]
[PlyCount "154"]
[EventDate "2024.01.10"]
[EventType "swiss"]
[EventCountry "USA"]
[SourceTitle "playchess.com"]
[Source "ChessBase"]
[SourceQuality "1"]
[TimeControl "5400+30"]

1. e4 {[%emt 0:32:16]} g6 {[%emt 0:00:17]} 2. d4 {[%emt 0:00:08]} Nf6 {[%emt 0:00:08]} 3. e5 {[%emt 0:00:03]} Nh5 {[%emt 0:00:08]} 4. Nf3 {[%emt 0:00:03]} d6 {[%emt 0:00:23]} 5. Bc4 {[%emt 0:00:06]} d5 {[%emt 0:00:12]} 6. Bb3 {[%emt 0:00:24]} c6 {[%emt 0:00:32]} 7. c4 {[%emt 0:00:22]} Na6 {[%emt 0:18:18]} 8. Nc3 {[%emt 0:00:57]} Nc7 {[%emt 0:00:13]} 9. h3 {[%emt 0:01:06]} dxc4 {[%emt 0:04:14]} 10. Bxc4 {[%emt 0:00:15]} Be6 {[%emt 0:00:11]} 11. Qb3 {[%emt 0:10:58]} Bxc4 {[%emt 0:02:52]} 12. Qxc4 {[%emt 0:00:02]} Nd5 {[%emt 0:00:31]} 13. e6 {[%emt 0:21:13]} f6 {[%emt 0:01:59]} 14. O-O {[%emt 0:02:21]} Ng7 {[%emt 0:02:45]} 15. Re1 {[%emt 0:03:45]} Qd6 {[%emt 0:02:29]} 16. Ne4 {[%emt 0:08:04]} Qxe6 {[%emt 0:15:00]} 17. Qc5 {[%emt 0:00:35]} Kd7 {[%emt 0:03:01]} 18. Qa3 {[%emt 0:04:47]} Kc8 {[%emt 0:01:24]} 19. b4 {[%emt 0:03:40]} Nc7 {[%emt 0:12:50]} 20. Bf4 {[%emt 0:01:22]} Qd5 {[%emt 0:00:53]} 21. Nc3 {[%emt 0:04:00]} Qc4 {[%emt 0:06:19]} 22. Re4 {[%emt 0:01:26]} Nd5 {[%emt 0:03:26]} 23. Nxd5 {[%emt 0:01:05]} Qxd5 {[%emt 0:00:17]} 24. Ree1 {[%emt 0:00:48]} a5 {[%emt 0:03:43]} 25. Rab1 {[%emt 0:01:07]} e6 {[%emt 0:01:26]} 26. Rec1 {[%emt 0:00:49]} Ra6 {[%emt 0:01:56]} 27. Rc5 {[%emt 0:00:56]} Qe4 {[%emt 0:01:55]} 28. Qc1 {[%emt 0:00:42]} axb4 {[%emt 0:01:50]} 29. Rc4 {[%emt 0:00:21]} Qd5 {[%emt 0:02:07]} 30. Ne1 {[%emt 0:00:21]} g5 {[%emt 0:01:55]} 31. Bd2 {[%emt 0:00:28]} Nf5 {[%emt 0:00:25]} 32. Bxb4 {[%emt 0:01:10]} Nxd4 {[%emt 0:00:17]} 33. Rb2 {[%emt 0:00:43]} b5 {[%emt 0:03:00]} 34. Rxd4 {[%emt 0:00:17]} Qxd4 {[%emt 0:00:13]} 35. Bxf8 {[%emt 0:00:07]} Rxf8 {[%emt 0:00:17]} 36. Rxb5 {[%emt 0:00:08]} Rd8 {[%emt 0:00:37]} 37. Rb1 {[%emt 0:00:12]} Rb6 {[%emt 0:00:56]} 38. Rb3 {[%emt 0:01:02]} Kc7 {[%emt 0:01:11]} 39. Re3 {[%emt 0:00:13]} e5 {[%emt 0:00:49]} 40. Qc2 {[%emt 0:00:40]} Rd7 {[%emt 0:02:09]} 41. Rd3 {[%emt 0:01:58]} Qb4 {[%emt 0:01:22]} 42. Rxd7+ {[%emt 0:00:00]} Kxd7 {[%emt 0:00:08]} 43. Qxh7+ {[%emt 0:00:00]} Kc8 {[%emt 0:01:42]} 44. Qg8+ {[%emt 0:00:06]} Kb7 {[%emt 0:00:20]} 45. Nf3 {[%emt 0:00:16]} Qb1+ {[%emt 0:01:34]} 46. Kh2 {[%emt 0:00:01]} Qf5 {[%emt 0:00:14]} 47. Qf7+ {[%emt 0:00:09]} Kb8 {[%emt 0:02:17]} 48. Qf8+ {[%emt 0:00:16]} Kb7 {[%emt 0:00:34]} 49. Qf7+ {[%emt 0:00:05]} Ka6 {[%emt 0:00:43]} 50. Qc4+ {[%emt 0:00:05]} Ka7 {[%emt 0:00:14]} 51. Qc5 {[%emt 0:01:00]} Qf4+ {[%emt 0:00:19]} 52. Kh1 {[%emt 0:01:01]} Kb7 {[%emt 0:00:46]} 53. Qe7+ {[%emt 0:01:01]} Ka6 {[%emt 0:01:05]} 54. Qa3+ {[%emt 0:00:10]} Kb5 {[%emt 0:00:32]} 55. Qd3+ {[%emt 0:00:48]} Qc4 {[%emt 0:00:26]} 56. Qd2 {[%emt 0:01:00]} Ka6 {[%emt 0:00:16]} 57. Qd6 {[%emt 0:01:29]} Rb1+ {[%emt 0:00:26]} 58. Ng1 {[%emt 0:00:09]} Qc1 {[%emt 0:00:16]} 59. Qd3+ {[%emt 0:00:10]} Ka5 {[%emt 0:00:17]} 60. Qd8+ {[%emt 0:00:05]} Kb4 {[%emt 0:00:28]} 61. Qb6+ {[%emt 0:00:21]} Ka3 {[%emt 0:00:19]} 62. Qa7+ {[%emt 0:00:09]} Kb2 {[%emt 0:00:15]} 63. Kh2 {[%emt 0:01:32]} Qxg1+ {[%emt 0:00:16]} 64. Kg3 {[%emt 0:00:01]} Qc1 {[%emt 0:00:11]} 65. Kg4 {[%emt 0:00:25]} c5 {[%emt 0:00:17]} 66. a4 {[%emt 0:00:19]} Ka3 {[%emt 0:00:20]} 67. a5 {[%emt 0:00:36]} Rb4+ {[%emt 0:01:14]} 68. Kf5 {[%emt 0:00:59]} Rf4+ {[%emt 0:00:22]} 69. Ke6 {[%emt 0:00:25]} Qc4+ {[%emt 0:00:26]} 70. Ke7 {[%emt 0:00:20]} Qb5 {[%emt 0:00:38]} 71. Qa8 {[%emt 0:00:47]} Ra4 {[%emt 0:01:10]} 72. Qf3+ {[%emt 0:00:30]} Qb3 {[%emt 0:00:14]} 73. Qa8 {[%emt 0:00:12]} c4 {[%emt 0:00:20]} 74. a6 {[%emt 0:00:27]} c3 {[%emt 0:00:21]} 75. Qc6 {[%emt 0:01:06]} Qc4 {[%emt 0:00:25]} 76. Qf3 {[%emt 0:00:52]} Rxa6 {[%emt 0:00:13]} 77. Kf8 {[%emt 0:00:27]} Ra7 {[%emt 0:00:17]} 0-1